bitfinex/quotes_SOLUSD_20240717
["timestamp","ask_amount","ask_price","bid_price","bid_amount"]
[1721248031599,0.149607,157.31,157.29,16.90137023]
[1721248032199,6.506507,157.31,157.29,16.90137023]
[1721248032798,6.506507,157.31,157.29,15.63]
[1721248034205,6.506507,157.31,157.28,1.27140349]
[1721248034400,6.506507,157.31,157.29,15.63]
[1721248036696,0.149607,157.31,157.29,15.63]
[1721248037298,0.149607,157.31,157.29,16.90128962]
[1721248037498,0.149607,157.31,157.3,21.7468]
[1721248037815,0.149607,157.31,157.3,29.37522689]
[1721248038125,0.149607,157.31,157.3,28.104]
[1721248038315,0.149607,157.31,157.3,21.7468]
[1721248038517,0.149607,157.31,157.3,28.104]
[1721248044705,0.149607,157.31,157.3,29.37509211]
[1721248047396,0.149607,157.31,157.3,28.104]
[1721248048791,0.149607,157.31,157.3,1.27109219]
[1721248049027,6.506407,157.31,157.3,15.63]
[1721248049923,0.149607,157.31,157.3,15.63]
[1721248050115,0.149607,157.31,157.3,16.90127819]
[1721248051220,0.149607,157.31,157.3,15.63]
[1721248051427,0.149607,157.31,157.3,16.90127784]
[1721248052015,0.149607,157.31,157.3,23.25847784]
[1721248052621,0.149607,157.31,157.3,21.9872]
[1721248053129,0.149607,157.31,157.27,6.3581]
[1721248053130,6.506407,157.31,157.27,6.3581]
[1721248053439,6.3578,157.29,157.25,6.2872]
[1721248053629,6.3578,157.29,157.26,15.63]
[1721248053833,6.3578,157.29,157.27,15.63]
[1721248054134,0.149607,157.31,157.28,15.63]
[1721248054315,6.506707,157.31,157.28,15.63]
[1721248054821,6.506707,157.31,157.27,6.3581]
[1721248054822,0.149607,157.31,157.3,15.63]
[1721248055024,0.149607,157.31,157.3,21.9872]
[1721248055535,0.149607,157.31,157.3,15.63]
[1721248056328,0.149607,157.31,157.3,16.90120948]
[1721248056844,0.149607,157.31,157.3,23.25840948]
[1721248057137,0.149607,157.31,157.3,21.9872]
[1721248058120,0.149607,157.31,157.3,23.25840569]
[1721248058321,0.149607,157.31,157.3,16.90120569]
[1721248060343,0.149607,157.31,157.3,16.90120569]
[1721248060554,0.149607,157.31,157.3,1.27120569]
[1721248060723,0.149607,157.31,157.3,16.90120569]
[1721248061050,0.149607,157.31,157.3,15.63]
[1721248061919,0.149607,157.31,157.3,16.90122827]
[1721248065618,0.149607,157.31,157.3,23.25842827]
[1721248066750,0.149607,157.31,157.3,16.90122827]
[1721248070450,0.149607,157.31,157.3,15.63]
[1721248070849,16.0616,157.38,157.3,15.63]
[1721248071027,16.0616,157.38,157.29,15.63]
[1721248071028,65.0,157.37,157.29,15.63]
[1721248072020,6.3566,157.32,157.29,15.63]
[1721248072263,6.3568,157.31,157.27,1.27137121]
[1721248072547,6.3568,157.31,157.3,15.63]
[1721248072750,6.3565,157.32,157.3,15.63]
[1721248074440,6.3565,157.32,157.29,15.63]
[1721248074753,6.3569,157.31,157.29,15.63]
[1721248075550,65.0,157.37,157.29,15.63]
[1721248075551,6.3565,157.32,157.29,15.63]
[1721248075729,6.3565,157.32,157.3,1.27131566]
[1721248076132,6.356,157.33,157.3,16.90131566]
[1721248079555,80.8869,157.37,157.3,16.90131566]
[1721248079556,6.3564,157.32,157.3,15.63]
[1721248080632,6.3561,157.33,157.3,15.63]
[1721248080832,6.3561,157.33,157.3,16.90125017]
[1721248081753,6.3564,157.32,157.3,15.63]
[1721248081937,6.3564,157.32,157.29,15.63]
[1721248085555,6.356,157.33,157.29,21.9875]
[1721248085758,6.356,157.33,157.3,15.63]
[1721248086744,6.356,157.33,157.29,7.62885004]
[1721248086948,6.356,157.33,157.29,23.25885004]
[1721248088238,20.0,157.37,157.3,15.8927]
[1721248088444,6.3553,157.35,157.31,21.9866]
[1721248089168,16.0616,157.38,157.26,56.47540086]
[1721248089169,16.0616,157.38,157.32,31.5206]
[1721248089575,6.3549,157.36,157.32,37.877]
[1721248090242,6.3549,157.36,157.32,22.247]
[1721248090443,6.3549,157.36,157.33,15.63]
[1721248090750,6.3545,157.37,157.33,21.986]
[1721248090950,6.355,157.36,157.33,15.63]
[1721248091860,6.355,157.36,157.32,15.8906]
[1721248092068,6.355,157.36,157.32,31.5206]
[1721248092375,6.355,157.36,157.32,37.877]
[1721248092672,6.355,157.36,157.33,15.63]
[1721248092967,16.0616,157.38,157.32,31.5206]
[1721248092968,6.3553,157.35,157.32,31.5206]
[1721248093144,16.0616,157.38,157.3,6.636]
[1721248093145,31.9469,157.38,157.3,6.636]
[1721248093345,45.0,157.37,157.3,15.63]
[1721248093564,6.356,157.33,157.3,15.63]
[1721248093952,6.3557,157.34,157.3,21.9872]
[1721248095776,6.3554,157.35,157.31,15.63]
[1721248097060,6.3548,157.36,157.31,31.5217]
[1721248097261,6.3553,157.35,157.31,37.8785]
[1721248097650,31.9469,157.38,157.28,15.8944]
[1721248097856,6.3564,157.33,157.28,37.8824]
[1721248098455,6.3564,157.33,157.29,6.3576]
[1721248098660,6.3564,157.33,157.29,21.9876]
[1721248101668,6.3556,157.35,157.3,31.5229]
[1721248101869,6.3556,157.35,157.31,6.3567]
[1721248102072,6.3556,157.35,157.31,21.9867]
[1721248102278,31.9469,157.38,157.31,21.9867]
[1721248102279,6.3556,157.34,157.31,15.63]
[1721248104094,6.3556,157.34,157.31,16.90118103]
[1721248104886,6.3556,157.34,157.31,15.63]
[1721248105668,6.3556,157.34,157.3,31.5229]
[1721248106075,6.3556,157.34,157.3,15.8929]
[1721248109268,6.3556,157.34,157.3,39.15125166]
[1721248109665,6.3554,157.35,157.3,39.15125166]
[1721248110793,6.3557,157.34,157.3,39.15125166]
[1721248113589,6.3557,157.34,157.3,37.88]
[1721248114269,6.356,157.33,157.3,37.88]
[1721248115895,6.3558,157.34,157.3,37.88]
[1721248116192,6.3554,157.35,157.31,7.6279444]
[1721248116397,6.3554,157.35,157.31,23.2579444]
[1721248116866,6.3556,157.34,157.31,16.9011444]
[1721248117069,15.8853,157.38,157.32,1.27113076]
[1721248117272,6.3546,157.37,157.33,16.90098247]
[1721248117499,6.3546,157.37,157.33,15.63]
[1721248117701,6.3546,157.37,157.32,21.9861]
[1721248118188,6.3549,157.36,157.32,21.9861]
[1721248119387,6.3555,157.35,157.31,6.4932]
[1721248119600,6.3555,157.35,157.32,15.63]
[1721248121103,6.3555,157.35,157.31,28.4798]
[1721248123611,6.3549,157.36,157.32,6.3564]
[1721248123908,31.6499,157.42,157.32,15.8909]
[1721248124108,6.3542,157.38,157.34,6.3555]
[1721248124318,6.3544,157.37,157.33,21.986]
[1721248124488,6.3544,157.37,157.33,6.356]
[1721248127929,45.0,157.41,157.33,6.356]
[1721248128101,45.0,157.41,157.34,15.8889]
[1721248128102,6.354,157.38,157.34,15.8889]
[1721248128829,6.354,157.38,157.34,37.8744]
[1721248129121,6.354,157.38,157.35,15.63]
[1721248129303,6.3538,157.39,157.35,21.9852]
[1721248129915,6.3541,157.38,157.34,37.8745]
[1721248135424,45.0,157.41,157.34,15.8889]
[1721248135724,6.3545,157.37,157.33,21.986]
[1721248139127,6.3541,157.38,157.34,23.25657769]
[1721248139630,6.3541,157.38,157.34,21.9856]
[1721248140204,6.3544,157.37,157.34,15.63]
[1721248140401,45.0,157.41,157.34,15.63]
[1721248140402,6.3538,157.39,157.35,6.3551]
[1721248140624,6.3538,157.39,157.35,21.9851]
[1721248142127,6.3541,157.38,157.35,15.63]
[1721248148938,6.3541,157.38,157.34,21.9855]
[1721248151928,6.3545,157.37,157.34,15.63]
[1721248153742,6.3542,157.38,157.34,21.9856]
[1721248161549,6.3542,157.38,157.34,6.3556]
[1721248161853,45.0,157.41,157.33,15.8899]
[1721248161854,6.3544,157.37,157.33,22.2457]
[1721248162058,6.3544,157.37,157.33,37.8757]
[1721248162425,45.0,157.41,157.33,31.5199]
[1721248162652,6.3541,157.38,157.34,6.3555]
[1721248164433,6.3541,157.38,157.34,21.9855]
[1721248170454,45.0,157.41,157.35,21.9852]
[1721248170632,45.0,157.41,157.33,15.8899]
[1721248170633,6.3536,157.39,157.36,6.3548]
[1721248170840,6.3533,157.4,157.36,21.9848]
[1721248171958,6.3531,157.41,157.37,23.25527481]
[1721248172860,6.3531,157.41,157.37,21.9844]
[1721248173047,6.3531,157.41,157.37,15.63]
[1721248177459,6.3533,157.4,157.37,15.63]
[1721248180473,6.3528,157.41,157.37,21.9843]
[1721248180670,6.3528,157.41,157.37,15.63]
[1721248181568,6.3533,157.4,157.37,15.63]
[1721248188274,6.3533,157.4,157.38,15.63]
[1721248190072,6.3533,157.4,157.36,7.625429]
[1721248190073,15.8783,157.45,157.37,17.15652563]
[1721248190375,6.3524,157.42,157.4,15.63]
[1721248190560,45.0,157.44,157.4,15.63]
[1721248190760,6.3521,157.43,157.4,15.63]
[1721248190965,6.3521,157.43,157.4,1.27049745]
[1721248191279,6.3521,157.43,157.41,15.63]
[1721248196979,6.3521,157.43,157.4,15.63]
[1721248198271,6.3517,157.44,157.4,15.63]
[1721248199258,6.3517,157.44,157.4,16.90046029]
[1721248200592,0.8161914,157.47,157.41,15.63]
[1721248200593,6.3512,157.45,157.41,15.63]
[1721248200773,6.3512,157.45,157.4,1.27046029]
[1721248200975,6.3512,157.45,157.42,15.63]
[1721248208578,6.3509,157.46,157.42,21.9824]
[1721248208778,6.3513,157.45,157.42,15.63]
[1721248210063,0.8161914,157.47,157.43,15.63]
[1721248210265,6.3508,157.46,157.44,15.63]
[1721248214192,6.3508,157.46,157.43,15.63]
[1721248218796,6.3508,157.46,157.44,15.63]
[1721248218976,0.8161914,157.47,157.43,15.63]
[1721248218977,6.3512,157.45,157.43,15.63]
[1721248219170,6.3516,157.44,157.41,15.8812]
[1721248219369,0.8161914,157.47,157.41,15.8812]
[1721248219675,6.3525,157.42,157.39,6.177]
[1721248220068,16.6926914,157.47,157.39,6.177]
[1721248220069,6.3528,157.41,157.39,6.177]
[1721248220279,16.6926914,157.47,157.39,6.177]
[1721248220475,6.352,157.43,157.39,12.5306]
[1721248220674,6.352,157.43,157.39,28.1606]
[1721248221092,16.6926914,157.47,157.4,21.9831]
[1721248221409,6.3516,157.44,157.4,21.9831]
[1721248221694,6.3516,157.44,157.39,44.0438]
[1721248221995,6.3521,157.43,157.39,44.0438]
[1721248225677,6.3517,157.44,157.39,44.0438]
[1721248226806,6.3517,157.44,157.39,28.4138]
[1721248227991,6.3517,157.44,157.4,6.3532]
[1721248228917,65.0,157.46,157.39,22.2368]
[1721248228918,6.352,157.43,157.39,22.2368]
[1721248229196,51.3526,157.42,157.38,6.3539]
[1721248229402,6.3526,157.42,157.38,6.3539]
[1721248240987,65.0,157.46,157.39,6.3535]
[1721248241190,20.0,157.46,157.4,6.3528]
[1721248241392,6.3519,157.44,157.4,6.3528]
[1721248242595,6.3513,157.45,157.41,6.3528]
[1721248243311,6.3516,157.44,157.4,6.3531]
[1721248244810,0.8161914,157.47,157.41,6.3527]
[1721248244994,0.8161914,157.47,157.41,21.9827]
[1721248245310,0.8161914,157.47,157.44,6.3513]
[1721248245498,0.8161914,157.47,157.42,32.78036429]
[1721248245912,7.1667914,157.47,157.43,6.3519]
[1721248246091,7.1667914,157.47,157.42,32.78036429]
[1721248246291,7.1667914,157.47,157.42,39.13266429]
[1721248246292,6.3509,157.46,157.42,39.13266429]
[1721248246610,6.3509,157.46,157.42,37.8624]
[1721248247695,6.3509,157.46,157.43,15.63]
[1721248249420,6.3509,157.46,157.42,37.8624]
[1721248256621,6.3509,157.46,157.43,1.27023155]
[1721248257525,0.8161914,157.47,157.43,16.90023155]
[1721248258116,0.8161914,157.47,157.44,15.63]
[1721248258806,0.8161914,157.47,157.43,23.25213155]
[1721248259425,7.1666914,157.47,157.43,23.25213155]
[1721248260498,7.1666914,157.47,157.43,21.9819]
[1721248261006,6.3508,157.46,157.42,37.8624]
[1721248261201,0.8161914,157.47,157.42,15.8801]
[1721248262427,6.3509,157.46,157.42,22.2324]
[1721248262613,7.1666914,157.47,157.42,22.2324]
[1721248263108,0.8161914,157.47,157.38,22.2385]
[1721248263425,0.8161914,157.47,157.38,6.3539]
[1721248263426,6.3521,157.43,157.38,6.3539]
[1721248263601,6.3521,157.43,157.38,21.9839]
[1721248264007,6.3524,157.42,157.37,6.3544]
[1721248264226,6.3528,157.41,157.36,38.6031]
[1721248264507,6.3533,157.4,157.36,1.27068197]
[1721248264814,6.3533,157.4,157.35,37.953]
[1721248265403,6.3533,157.4,157.36,6.3547]
[1721248266013,6.3533,157.4,157.36,6.3547]
[1721248266445,7.82556306,157.47,157.36,15.63]
[1721248266631,65.0,157.46,157.36,15.63]
[1721248266843,0.8161914,157.47,157.35,22.323]
[1721248266844,6.3524,157.42,157.37,15.63]
[1721248267022,15.8776,157.46,157.35,37.953]
[1721248267220,6.3531,157.41,157.36,6.3548]
[1721248267429,15.8776,157.46,157.36,6.3548]
[1721248267638,65.0,157.45,157.36,6.3548]
[1721248267936,6.3532,157.4,157.35,44.3081]
[1721248269329,65.0,157.45,157.35,37.953]
[1721248269522,65.0,157.45,157.36,1.27062739]
[1721248269841,6.3528,157.41,157.36,7.62542924]
[1721248270216,6.3524,157.43,157.36,15.63]
[1721248270413,6.3524,157.43,157.38,6.354]
[1721248273634,6.3524,157.42,157.38,6.354]
[1721248275039,6.3524,157.42,157.37,6.3543]
[1721248275822,6.352,157.43,157.38,7.62448359]
[1721248276647,45.0,157.45,157.38,23.25448359]
[1721248276951,6.3525,157.42,157.38,23.25448359]
[1721248277856,6.3525,157.42,157.38,7.62448359]
[1721248279335,6.3528,157.41,157.37,22.2397]
[1721248280047,6.3525,157.42,157.37,22.2397]
[1721248280342,6.3532,157.4,157.37,17.15594123]
[1721248280545,6.3528,157.41,157.37,17.15594123]
[1721248281127,6.3533,157.4,157.37,15.8854]
[1721248281329,6.3533,157.4,157.35,12.7905]
[1721248281742,6.3536,157.39,157.35,12.7905]
[1721248282939,6.3536,157.39,157.35,6.4353]
[1721248284441,6.3536,157.39,157.35,7.70617928]
[1721248284644,6.3536,157.39,157.35,12.7905]
[1721248288347,6.3536,157.39,157.35,14.06138401]
[1721248291549,6.3536,157.39,157.35,12.7905]
[1721248295251,6.3536,157.39,157.35,14.06137197]
[1721248296834,6.3536,157.39,157.35,29.69137197]
[1721248298755,6.3532,157.4,157.36,7.62535368]
[1721248299161,6.3529,157.41,157.37,6.3544]
[1721248299755,6.3532,157.4,157.37,6.3544]
[1721248299957,16.6925914,157.47,157.38,1.27072769]
[1721248300154,16.6925914,157.47,157.38,23.25432769]
[1721248300155,6.3525,157.42,157.38,23.25432769]
[1721248300363,6.3521,157.43,157.39,6.3535]
[1721248300673,6.3521,157.43,157.4,1.27049207]
[1721248300873,16.6925914,157.47,157.4,1.27049207]
[1721248300874,6.3524,157.42,157.4,1.27049207]
[1721248301538,6.3521,157.43,157.39,23.25400571]
[1721248301747,6.3521,157.43,157.4,1.27050072]
[1721248302045,6.3517,157.44,157.4,7.62370072]
[1721248302643,6.3517,157.44,157.4,29.31010072]
[1721248304846,6.3513,157.45,157.43,1.27028655]
[1721248305341,6.3513,157.45,157.42,1.27022443]
[1721248305545,6.3513,157.45,157.43,1.27022445]
[1721248306346,6.3513,157.45,157.41,15.63]
[1721248306853,6.3513,157.45,157.42,1.27022809]
[1721248307764,6.3513,157.45,157.43,1.27022661]
[1721248308653,6.3513,157.45,157.42,1.27022829]
[1721248308857,6.3513,157.45,157.43,1.27022757]
[1721248309560,6.3509,157.46,157.43,1.27022757]
[1721248309871,6.3509,157.46,157.44,1.27018389]
[1721248310074,6.3509,157.46,157.42,1.27018364]
[1721248310258,6.3509,157.46,157.43,1.27018345]
[1721248310576,6.3509,157.46,157.41,21.9826]
[1721248311449,6.3512,157.45,157.42,1.27018573]
[1721248311649,6.3512,157.45,157.43,1.27019991]
[1721248312583,6.3512,157.45,157.42,1.27020063]
[1721248312869,6.3512,157.45,157.43,1.27020137]
[1721248313373,6.3512,157.45,157.41,21.9826]
[1721248316373,6.3512,157.45,157.42,1.27020294]
[1721248317273,6.3512,157.45,157.43,1.27020217]
[1721248317478,0.8161914,157.47,157.43,1.27020217]
[1721248317651,6.3508,157.46,157.43,16.90020217]
[1721248320368,7.1666914,157.47,157.43,23.25220217]
[1721248320752,7.1666914,157.47,157.44,15.63]
[1721248320993,0.8161914,157.47,157.46,15.63]
[1721248321293,0.8161914,157.47,157.46,1.26994896]
[1721248322862,7.1665914,157.47,157.46,1.26994896]
[1721248323057,0.8161914,157.47,157.46,1.26994896]
[1721248326370,0.8161914,157.47,157.46,16.89994896]
[1721248330690,0.8161914,157.47,157.46,15.63]
[1721248331501,0.8161914,157.47,157.46,21.9808]
[1721248332356,0.8161914,157.47,157.46,23.25054723]
[1721248332555,0.8161914,157.47,157.46,21.9808]
[1721248335771,0.8161914,157.47,157.46,23.25055237]
[1721248335975,0.8161914,157.47,157.46,21.9808]
[1721248336175,0.8161914,157.47,157.46,38.366]
[1721248336464,0.8161914,157.47,157.46,39.635628]
[1721248337293,0.8161914,157.47,157.46,84.635628]
[1721248337784,0.8161914,157.47,157.46,83.366]
[1721248339164,0.8161914,157.47,157.46,102.476]
[1721248340789,0.8161914,157.47,157.46,57.476]
[1721248341690,0.8161914,157.47,157.46,38.366]
[1721248347496,0.8161914,157.47,157.46,21.9808]
[1721248348898,0.8161914,157.47,157.46,6.3508]
[1721248357911,0.8161914,157.47,157.44,15.8785]
[1721248358782,0.8161914,157.47,157.44,22.23]
[1721248359214,0.8161914,157.47,157.44,15.8785]
[1721248359215,7.1665914,157.47,157.44,15.8785]
[1721248360089,0.8161914,157.47,157.44,22.2301]
[1721248363405,0.8161914,157.47,157.44,15.8785]
[1721248363721,6.3508,157.46,157.42,6.3521]
[1721248367797,7.1666914,157.47,157.43,6.3519]
[1721248368491,0.8161914,157.47,157.43,6.3519]
[1721248368687,6.3508,157.46,157.42,6.3522]
[1721248370030,6.3513,157.45,157.41,22.2341]
[1721248370594,0.8161914,157.47,157.42,6.3523]
[1721248370595,6.3508,157.46,157.42,6.3523]
[1721248372704,6.3508,157.46,157.43,6.352]
[1721248373228,6.3508,157.46,157.42,6.3523]
[1721248373898,6.3508,157.46,157.43,6.352]
[1721248374221,7.1666914,157.47,157.43,6.352]
[1721248374531,45.0,157.46,157.43,6.352]
[1721248375595,51.3508,157.46,157.41,17.15174027]
[1721248375795,51.3508,157.46,157.41,15.8814]
[1721248376616,51.3508,157.46,157.42,6.3522]
[1721248378733,6.3512,157.45,157.41,22.234]
[1721248380612,6.3512,157.45,157.42,6.3524]
[1721248381113,51.3509,157.46,157.42,6.3524]
[1721248382724,6.3512,157.45,157.42,6.3524]
[1721248382937,51.3508,157.46,157.42,6.3524]
[1721248385448,51.3508,157.46,157.42,7.62273319]
[1721248386041,51.3508,157.46,157.42,7.62273944]
[1721248387027,51.3508,157.46,157.42,6.3524]
[1721248387231,6.3517,157.44,157.4,6.3531]
[1721248389744,6.3517,157.44,157.41,6.3527]
[1721248390337,6.3513,157.45,157.41,6.3527]
[1721248390527,45.0,157.44,157.41,6.3527]
[1721248391749,45.0,157.44,157.4,15.8829]
[1721248391750,45.0,157.44,157.36,41.29230378]
[1721248391951,45.0,157.44,157.37,15.8855]
[1721248393156,76.7585,157.44,157.34,15.8887]
[1721248393359,4.3713,157.41,157.31,15.8915]
[1721248393665,45.0,157.4,157.31,15.8915]
[1721248393960,20.0,157.39,157.31,15.8915]
[1721248394178,45.0,157.38,157.31,15.8915]
[1721248394378,6.3548,157.36,157.32,6.3564]
[1721248397275,6.3544,157.37,157.33,6.356]
[1721248397482,45.0,157.36,157.32,6.3563]
[1721248397680,6.3544,157.37,157.33,6.356]
[1721248400059,5.8544,157.37,157.33,6.356]
[1721248402693,6.3548,157.36,157.32,6.3563]
[1721248406979,6.3553,157.35,157.31,22.2483]
[1721248407183,6.3559,157.34,157.3,6.3571]
[1721248407978,6.3554,157.35,157.3,6.3571]
[1721248408286,6.3554,157.35,157.31,6.3567]
[1721248409501,15.8856,157.38,157.32,6.3563]
[1721248409502,6.355,157.36,157.32,6.3563]
[1721248416410,6.3552,157.35,157.31,21.9867]
[1721248416800,6.3552,157.35,157.31,6.3567]
[1721248417087,6.3557,157.34,157.3,22.2501]
[1721248420415,6.3554,157.35,157.31,6.3568]
[1721248421498,20.0,157.39,157.27,15.8953]
[1721248421499,15.8873,157.36,157.27,15.8953]
[1721248421703,6.3575,157.3,157.26,1.2714017]
[1721248421914,15.8894,157.34,157.25,28.1105]
[1721248421915,6.3577,157.29,157.25,28.1105]
[1721248422215,15.8913,157.32,157.25,6.3592]
[1721248422382,6.3579,157.29,157.24,37.8879]
[1721248422582,6.3579,157.29,157.25,6.3592]
[1721248424303,6.3582,157.28,157.24,15.8985]
[1721248425409,6.3582,157.28,157.24,22.258]
[1721248427905,6.3577,157.29,157.25,7.63090366]
[1721248428089,6.3577,157.29,157.26,15.63]
[1721248428292,6.3574,157.3,157.26,15.63]
[1721248428699,6.3574,157.3,157.26,21.9887]
[1721248428902,6.3564,157.33,157.28,21.9879]
[1721248429105,6.3565,157.32,157.28,37.8826]
[1721248429284,6.3565,157.32,157.28,22.2526]
[1721248429493,6.3569,157.31,157.28,15.8947]
[1721248429887,6.3569,157.31,157.26,6.0554]
[1721248429888,15.8896,157.34,157.26,6.0554]
[1721248430096,15.8896,157.34,157.27,15.63]
[1721248430294,45.0,157.33,157.27,15.63]
[1721248431020,6.3569,157.31,157.27,21.9882]
[1721248432020,6.3566,157.32,157.28,7.62941393]
[1721248432311,6.3566,157.32,157.28,23.25941393]
[1721248432498,6.3561,157.33,157.29,6.3576]
[1721248432895,6.3558,157.34,157.3,6.3572]
[1721248433302,6.3558,157.34,157.3,7.62841334]
[1721248433915,6.3558,157.34,157.3,23.25841334]
[1721248434498,6.3558,157.34,157.3,21.9872]
[1721248436806,6.3558,157.34,157.31,1.27118615]
[1721248437119,6.3558,157.34,157.3,21.9872]
[1721248440921,6.3558,157.34,157.31,1.27117997]
[1721248442422,6.356,157.33,157.31,1.27117997]
[1721248442719,259.2,157.39,157.31,1.27117997]
[1721248442924,6.3555,157.35,157.32,15.63]
[1721248443126,6.3557,157.34,157.3,22.2496]
[1721248443303,6.3557,157.34,157.31,15.63]
[1721248444021,15.8873,157.36,157.29,15.63]
[1721248444320,6.357,157.31,157.27,37.3809]
[1721248444526,6.357,157.31,157.28,15.63]
[1721248444908,45.0,157.35,157.27,46.6527]
[1721248445515,6.357,157.31,157.27,53.011]
[1721248447324,6.3565,157.32,157.28,6.358]
[1721248449735,6.3562,157.33,157.29,6.3576]
[1721248450340,45.0,157.32,157.29,6.3576]
[1721248451930,51.3564,157.32,157.29,6.3576]
[1721248452441,45.0,157.32,157.29,6.3576]
[1721248453644,51.3564,157.32,157.28,6.3579]
[1721248456448,51.3564,157.32,157.27,15.8957]
[1721248456449,51.3564,157.32,157.29,6.3576]
[1721248456924,45.0,157.32,157.29,6.3576]
[1721248458037,45.0,157.32,157.3,6.3572]
[1721248458351,45.0,157.33,157.3,6.3572]
[1721248458646,51.356,157.33,157.29,22.2515]
[1721248460035,6.3564,157.32,157.29,15.894]
[1721248460437,6.3564,157.32,157.28,6.3579]
[1721248460643,6.3569,157.31,157.28,6.3579]
[1721248460957,6.3569,157.31,157.27,6.3583]
[1721248461746,6.3566,157.32,157.28,6.358]
[1721248462934,51.3562,157.33,157.29,6.3576]
[1721248464332,6.3565,157.32,157.28,23.52440609]
[1721248466146,6.3569,157.31,157.28,23.52440609]
[1721248466544,6.3569,157.31,157.28,15.8951]
[1721248467252,45.0,157.33,157.26,6.0554]
[1721248467745,45.0,157.33,157.25,15.8976]
[1721248468057,6.3581,157.28,157.25,15.8976]
[1721248468767,6.3578,157.29,157.25,22.2568]
[1721248469253,6.3574,157.3,157.26,6.3588]
[1721248470554,6.3576,157.29,157.25,22.2567]
[1721248472833,6.3574,157.3,157.26,6.3587]
[1721248475535,20.0,157.32,157.26,15.63]
[1721248475943,6.3572,157.3,157.26,21.9886]
[1721248476350,6.3572,157.3,157.26,6.3586]
[1721248477541,6.3571,157.31,157.27,6.3583]
[1721248478160,6.3573,157.3,157.26,28.2422]
[1721248478654,6.3577,157.29,157.26,6.2534]
[1721248478846,6.3581,157.28,157.26,6.2534]
[1721248480674,6.3577,157.29,157.26,6.2534]
[1721248484370,15.8906,157.33,157.26,6.2534]
[1721248484371,6.3581,157.28,157.26,6.2534]
[1721248485564,6.3578,157.29,157.26,6.2534]
[1721248488657,6.3574,157.3,157.26,12.6122]
[1721248488860,45.0,157.29,157.26,12.6122]
[1721248493171,51.3577,157.29,157.26,6.2534]
[1721248494580,51.3577,157.29,157.26,12.6122]
[1721248494783,45.0,157.29,157.26,12.6122]
[1721248497550,51.3577,157.29,157.26,12.6122]
[1721248497750,51.3577,157.29,157.26,6.2534]
[1721248499280,20.0,157.34,157.26,22.1502]
[1721248499464,6.3566,157.32,157.28,6.358]
[1721248500470,6.3569,157.31,157.27,7.62985775]
[1721248501059,6.3569,157.31,157.27,6.3584]
[1721248503769,6.3573,157.3,157.26,28.5089]
[1721248506678,6.3573,157.3,157.27,1.27156346]
[1721248507062,6.3573,157.3,157.27,7.62996346]
[1721248507263,6.3573,157.3,157.27,1.27156346]
[1721248509164,6.3573,157.3,157.26,28.5089]
[1721248509487,6.3573,157.3,157.26,29.78046456]
[1721248510066,6.3573,157.3,157.27,1.27156378]
[1721248510275,6.3573,157.3,157.26,29.78046363]
[1721248510899,6.3577,157.29,157.26,22.1502]
[1721248511066,6.3577,157.29,157.26,6.2534]
[1721248511466,15.8893,157.34,157.26,6.2534]
[1721248511467,6.3581,157.28,157.26,6.2534]
[1721248512089,15.8893,157.34,157.26,12.6122]
[1721248512285,6.3575,157.3,157.26,12.6122]
[1721248512493,6.3575,157.3,157.26,6.2534]
[1721248512791,6.3577,157.29,157.26,6.2534]